bitfinex/quotes_SOLUSD_20250823
["timestamp","ask_amount","ask_price","bid_price","bid_amount"]
[1755907738112,39.88,199.83,199.82,3.58745553]
[1755907738299,39.88,199.83,199.81,0.54024]
[1755907738499,39.88,199.83,199.82,3.58774143]
[1755907738805,39.88,199.83,199.79,3.58774143]
[1755907739005,39.88,199.83,199.8,3.58774143]
[1755907739329,39.88,199.83,199.81,3.58774143]
[1755907739648,39.88,199.83,199.82,3.58774143]
[1755907740019,39.88,199.83,199.79,0.66]
[1755907740218,39.88,199.83,199.8,4.24925108]
[1755907740525,39.88,199.83,199.81,4.24925108]
[1755907740714,39.88,199.83,199.81,0.66]
[1755907741095,39.88,199.83,199.82,3.58964329]
[1755907741316,0.69,199.85,199.82,3.58964329]
[1755907741493,39.88,199.84,199.8,26.66]
[1755907741694,39.88,199.83,199.81,3.5884502]
[1755907741924,39.88,199.83,199.82,3.5884502]
[1755907742517,0.69,199.85,199.82,3.5884502]
[1755907742823,39.88,199.84,199.83,3.58898973]
[1755907743206,39.88,199.84,199.83,3.58933698]
[1755907743829,39.88,199.84,199.83,3.58966529]
[1755907748027,39.86,199.84,199.83,4.24966529]
[1755907748734,39.86,199.84,199.83,3.58966529]
[1755907749325,0.69,199.91,199.83,4.24966529]
[1755907749504,39.86,199.9,199.84,4.24966529]
[1755907749711,39.86,199.89,199.88,26.0]
[1755907750016,0.69,199.93,199.88,26.0]
[1755907750017,39.86,199.91,199.89,13.59559401]
[1755907750325,0.69,199.97,199.9,4.24966529]
[1755907750526,0.06,200.01,199.92,26.0]
[1755907750527,0.69,200.0,199.92,26.0]
[1755907750728,0.69,200.0,199.93,4.24966529]
[1755907750903,39.86,199.99,199.94,3.58966529]
[1755907751104,39.86,199.99,199.95,4.24966529]
[1755907751311,0.75,200.01,199.96,3.58966529]
[1755907751519,39.86,199.98,199.97,3.58966529]
[1755907751930,39.86,199.98,199.95,0.66]
[1755907752137,39.86,199.98,199.96,3.58223751]
[1755907752332,39.86,199.98,199.97,3.58223751]
[1755907752626,39.86,199.98,199.97,3.58093191]
[1755907753610,39.84,199.98,199.97,3.58093191]
[1755907754019,39.84,199.98,199.97,4.24093191]
[1755907754622,0.75,200.01,199.97,3.58093191]
[1755907754822,40.53,200.0,199.95,13.59559401]
[1755907755025,40.53,200.0,199.96,3.57831632]
[1755907755209,0.69,200.0,199.97,3.57831632]
[1755907755414,39.84,199.99,199.95,14.25559401]
[1755907755710,39.84,199.99,199.96,3.57640466]
[1755907755908,39.84,199.99,199.97,3.57640466]
[1755907756134,39.84,199.99,199.95,14.25559401]
[1755907756314,39.84,199.99,199.96,3.57639741]
[1755907756629,0.69,200.0,199.97,3.57379902]
[1755907756830,0.06,200.01,200.0,39.59559401]
[1755907757033,0.06,200.01,200.0,43.45371617]
[1755907757217,0.06,200.01,200.0,44.11371617]
[1755907760212,0.06,200.03,200.02,0.28432314]
[1755907760516,0.06,200.06,200.05,39.59559401]
[1755907760724,0.06,200.06,200.05,39.87991715]
[1755907760937,2.60611733,200.16,200.13,26.0]
[1755907761236,0.69,200.17,200.13,26.0]
[1755907761432,0.69,200.16,200.13,26.0]
[1755907761941,0.69,200.16,200.14,15.001125]
[1755907762635,0.69,200.15,200.07,0.66]
[1755907762820,0.69,200.15,200.08,3.5390515]
[1755907763135,0.69,200.15,200.01,0.66]
[1755907763438,0.69,200.15,200.05,26.0]
[1755907763732,0.69,200.15,200.06,13.59559401]
[1755907763935,39.8,200.14,200.07,15.006377]
[1755907764235,0.69,200.13,200.07,15.006377]
[1755907765238,0.69,200.13,200.06,26.0]
[1755907765440,0.69,200.13,200.07,15.006378]
[1755907765641,0.69,200.13,200.06,26.0]
[1755907766052,0.69,200.13,200.06,41.006378]
[1755907767019,39.8,200.12,200.06,41.006378]
[1755907767222,39.8,200.12,200.06,41.676378]
[1755907767451,0.69,200.13,200.06,41.676378]
[1755907767621,39.78,200.12,200.07,13.59559401]
[1755907767829,39.78,200.12,200.08,0.67]
[1755907768340,0.65,200.16,200.1,26.0]
[1755907768545,39.78,200.15,200.1,26.0]
[1755907768723,40.43,200.15,200.1,26.0]
[1755907769124,40.43,200.15,200.1,41.003376]
[1755907769726,0.65,200.15,200.1,26.0]
[1755907769929,0.65,200.15,200.03,0.67]
[1755907769930,0.65,200.14,200.03,0.67]
[1755907770126,0.65,200.14,200.08,41.004877]
[1755907770851,0.65,200.14,200.08,26.0]
[1755907773456,39.76,200.13,200.08,26.0]
[1755907773656,0.65,200.12,200.08,26.0]
[1755907773830,39.76,200.13,200.08,26.0]
[1755907774029,40.41,200.13,200.08,26.0]
[1755907774231,0.65,200.12,200.08,26.0]
[1755907774433,0.65,200.11,200.06,15.007128]
[1755907774629,0.65,200.11,200.0,14.26559401]
[1755907774831,0.65,200.11,200.03,26.0]
[1755907775065,0.65,200.11,200.01,0.14216157]
[1755907775066,0.65,200.11,200.02,13.59559401]
[1755907775439,0.65,200.11,200.02,28.60272201]
[1755907775648,0.65,200.11,200.02,13.59559401]
[1755907776068,0.65,200.11,200.02,13.62559401]
[1755907776862,0.65,200.11,200.03,0.67]
[1755907777059,0.65,200.11,200.02,13.62559401]
[1755907777261,0.65,200.11,200.02,0.03]
[1755907777562,0.65,200.11,200.04,0.03]
[1755907777761,39.76,200.1,200.04,0.03]
[1755907778064,0.65,200.09,200.04,0.03]
[1755907778451,0.65,200.08,200.04,0.03]
[1755907779568,0.65,200.08,200.02,0.03]
[1755907779569,0.28432314,200.06,200.02,0.03]
[1755907780159,0.65,200.05,200.02,0.03]
[1755907780362,39.76,200.04,200.02,0.03]
[1755907780738,0.65,200.03,200.02,0.03]
[1755907782271,14.24559401,200.03,200.02,0.03]
[1755907783140,49.59559401,199.99,199.8,0.67]
[1755907783372,0.28432314,199.93,199.82,4.22914468]
[1755907783677,26.0,199.89,199.82,0.67]
[1755907783971,39.76,199.88,199.82,0.67]
[1755907785170,26.0,199.89,199.82,0.67]
[1755907785354,39.76,199.88,199.82,0.67]
[1755907787555,0.65,199.87,199.8,0.67]
[1755907791566,39.78,199.86,199.8,0.67]
[1755907791768,40.43,199.86,199.8,0.67]
[1755907792594,0.65,199.85,199.78,0.31432314]
[1755907793065,0.65,199.84,199.78,0.31432314]
[1755907793375,26.0,199.87,199.78,0.7]
[1755907793559,39.78,199.86,199.78,0.7]
[1755907793765,55.457425,199.86,199.78,0.7]
[1755907793971,0.65,199.85,199.78,0.7]
[1755907794173,39.78,199.84,199.78,0.7]
[1755907794370,39.78,199.84,199.79,0.67]
[1755907794766,39.78,199.84,199.79,0.7]
[1755907795779,39.78,199.84,199.79,0.03]
[1755907795960,39.78,199.83,199.79,0.03]
[1755907796168,39.78,199.82,199.79,0.03]
[1755907797286,40.47,199.82,199.79,0.03]
[1755907798095,42.473957,199.82,199.79,0.03]
[1755907799892,2.693957,199.82,199.79,0.03]
[1755907800198,42.473957,199.82,199.79,0.03]
[1755907802090,45.08470804,199.82,199.79,0.03]
[1755907802990,40.47,199.82,199.79,0.03]
[1755907803190,39.78,199.82,199.79,0.03]
[1755907803500,40.47,199.82,199.79,0.03]
[1755907805103,3.30042082,199.86,199.79,0.03]
[1755907805274,0.69,199.86,199.81,0.71]
[1755907805476,2.003758,199.85,199.81,0.03]
[1755907805674,39.78,199.84,199.82,0.68]
[1755907805874,39.78,199.83,199.81,0.03]
[1755907806101,39.78,199.83,199.81,0.71]
[1755907806409,2.003557,199.86,199.81,0.03]
[1755907806410,39.78,199.82,199.81,0.03]
[1755907807076,40.47,199.82,199.81,0.03]
[1755907808988,13.59559401,199.85,199.81,0.03]
[1755907809205,39.78,199.84,199.81,0.03]
[1755907809377,39.78,199.83,199.81,0.03]
[1755907809775,39.78,199.82,199.81,0.03]
[1755907811288,0.69,199.84,199.81,0.03]
[1755907811498,39.78,199.83,199.81,0.03]
[1755907811918,2.003557,199.86,199.82,0.68]
[1755907812089,39.78,199.85,199.83,0.68]
[1755907812409,39.78,199.85,199.81,0.71]
[1755907812638,2.003456,199.88,199.82,0.68]
[1755907812919,0.69,199.95,199.86,26.0]
[1755907813283,39.78,199.94,199.87,0.68]
[1755907813482,26.0,199.98,199.87,0.96432314]
[1755907813483,39.78,199.93,199.87,0.96432314]
[1755907813911,39.78,199.93,199.88,0.68]
[1755907814113,15.018397,199.97,199.88,0.68]
[1755907814314,40.47,199.96,199.87,0.28432314]
[1755907814755,39.78,199.96,199.87,0.28432314]
[1755907814922,0.69,199.95,199.87,0.28432314]
[1755907815232,13.59559401,199.94,199.84,0.68]
[1755907815390,0.69,199.93,199.85,26.0]
[1755907815726,39.78,199.92,199.85,26.0]
[1755907816092,39.78,199.92,199.84,0.68]
[1755907816690,13.59559401,199.9,199.81,26.03]
[1755907816894,0.69,199.89,199.81,0.03]
[1755907817117,39.78,199.88,199.81,0.03]
[1755907817422,0.69,199.87,199.81,0.03]
[1755907819713,39.78,199.86,199.81,0.03]
[1755907819909,40.47,199.86,199.81,0.03]
[1755907820299,39.78,199.86,199.82,3.56318881]
[1755907820617,40.47,199.85,199.81,0.03]
[1755907820820,39.78,199.85,199.82,3.56365255]
[1755907821127,39.78,199.85,199.81,0.71]
[1755907821323,39.78,199.85,199.82,3.56281306]
[1755907821504,39.78,199.85,199.81,0.71]
[1755907821706,39.78,199.85,199.82,3.5666957]
[1755907821906,39.78,199.85,199.81,0.71]
[1755907822301,39.78,199.85,199.82,3.56706037]
[1755907822521,40.47,199.85,199.83,3.56706037]
[1755907822727,40.47,199.85,199.81,0.03]
[1755907822929,40.47,199.85,199.82,3.57120599]
[1755907823126,0.69,199.84,199.83,3.57120599]
[1755907823307,0.69,199.84,199.83,3.57614685]
[1755907823507,0.69,199.84,199.81,0.03]
[1755907823833,0.69,199.83,199.82,3.57673365]
[1755907824134,40.47,199.85,199.82,3.57673365]
[1755907824311,39.78,199.85,199.83,3.57673365]
[1755907824509,0.69,199.84,199.81,0.03]
[1755907824714,0.69,199.84,199.82,3.58086203]
[1755907824906,0.69,199.84,199.83,3.58086203]
[1755907825903,0.69,199.84,199.82,0.03]
[1755907826118,0.69,199.84,199.83,3.58352844]
[1755907826332,39.78,199.85,199.83,3.58352844]
[1755907826525,39.78,199.85,199.84,3.58656544]
[1755907826727,40.47,199.85,199.84,3.58656544]
[1755907827441,14.28559401,199.85,199.82,0.03]
[1755907827618,14.28559401,199.85,199.83,3.59086232]
[1755907827619,39.78,199.84,199.83,3.59086232]
[1755907829425,40.43,199.84,199.83,3.59086232]
[1755907831239,54.02559401,199.84,199.83,3.59086232]
[1755907831432,13.59559401,199.83,199.82,0.03]
[1755907831633,14.24559401,199.83,199.82,0.03]
[1755907833236,54.02559401,199.83,199.82,0.03]
[1755907834156,56.63614911,199.83,199.82,0.03]
[1755907835657,16.85614911,199.83,199.82,0.03]
[1755907835850,56.92047225,199.83,199.82,0.03]
[1755907836162,56.92047225,199.83,199.81,0.03]
[1755907836326,39.87991715,199.8,199.79,0.03]
[1755907836729,80.30991715,199.8,199.79,0.03]
[1755907838061,80.02559401,199.8,199.79,0.03]
[1755907838846,13.59559401,199.82,199.79,0.03]
[1755907839157,39.78,199.81,199.79,0.03]
[1755907840062,39.78,199.8,199.79,0.03]
[1755907840635,40.43,199.8,199.79,0.03]
[1755907840857,54.02559401,199.8,199.79,0.03]
[1755907842662,28.61054658,199.83,199.79,0.03]
[1755907842870,53.37559401,199.82,199.79,0.03]
[1755907843164,14.2055979,199.93,199.79,0.03]
[1755907843165,39.78,199.81,199.79,0.74]
[1755907843372,39.78,199.8,199.79,0.03]
[1755907843949,39.78,199.8,199.79,0.74]
[1755907844576,14.24559401,199.85,199.79,0.74]
[1755907844804,39.78,199.84,199.79,0.74]
[1755907845148,39.78,199.84,199.79,0.03]
[1755907845485,0.65,199.83,199.79,0.03]
[1755907846464,39.78,199.82,199.79,0.74]
[1755907846659,39.78,199.82,199.79,0.03]
[1755907846866,0.65,199.81,199.79,0.03]
[1755907847995,39.78,199.82,199.79,0.03]
[1755907848872,39.78,199.82,199.8,0.71]
[1755907849081,2.61015402,199.87,199.79,0.03]
[1755907849082,13.59559401,199.86,199.81,4.28631442]
[1755907849286,39.78,199.85,199.82,3.63478404]
[1755907849459,14.24559401,199.84,199.79,0.03]
[1755907849659,14.24559401,199.84,199.8,3.63608041]
[1755907849983,0.65,199.83,199.79,0.03]
[1755907850172,39.78,199.82,199.79,0.03]
[1755907850983,39.78,199.81,199.8,3.5777218]
[1755907851379,39.78,199.81,199.79,0.03]
[1755907851982,0.65,199.84,199.79,0.03]
[1755907852182,39.78,199.83,199.8,3.63613727]
[1755907852487,39.78,199.83,199.79,0.03]
[1755907852488,14.24559401,199.82,199.79,0.03]
[1755907852887,0.65,199.81,199.79,0.03]
[1755907853193,39.78,199.8,199.79,0.03]
[1755907856774,40.43,199.8,199.79,0.03]
[1755907858767,0.06,199.84,199.79,0.03]
[1755907858983,0.69,199.8,199.79,0.03]
[1755907859189,40.47,199.8,199.79,0.03]
[1755907860091,54.06559401,199.8,199.79,0.03]
[1755907868293,54.34991715,199.8,199.79,0.03]
[1755907868598,92.87991715,199.79,199.77,0.03]
[1755907868778,92.87991715,199.79,199.66,0.66]
[1755907868779,13.59559401,199.75,199.66,0.66]
[1755907869092,13.59559401,199.73,199.67,3.63902115]
[1755907869287,39.76,199.72,199.68,3.63902115]
[1755907869473,13.59559401,199.73,199.69,4.29902115]
[1755907869474,39.76,199.71,199.69,4.29902115]
[1755907869679,39.76,199.71,199.7,4.29902115]
[1755907870802,39.76,199.71,199.7,4.29733474]
[1755907870982,39.76,199.71,199.7,3.63733474]
[1755907871294,39.76,199.71,199.7,3.6375214]
[1755907872084,40.45,199.71,199.7,3.6375214]
[1755907872272,39.76,199.71,199.7,3.6375214]
[1755907873470,39.76,199.71,199.7,4.2975214]
[1755907874006,13.59559401,199.75,199.7,4.2975214]
[1755907874208,39.76,199.74,199.71,3.6375214]
[1755907874379,39.76,199.74,199.72,3.6375214]
[1755907874574,39.76,199.74,199.73,3.6375214]
[1755907875974,13.59559401,199.75,199.69,0.66]
[1755907876177,39.76,199.74,199.7,4.29785062]
[1755907876377,39.76,199.74,199.71,3.63785062]
[1755907876579,40.45,199.74,199.72,3.63785062]
[1755907876900,40.45,199.74,199.7,0.66]
[1755907877104,40.45,199.74,199.71,3.63805825]
[1755907877285,40.45,199.74,199.72,3.63805825]
[1755907877604,40.45,199.74,199.68,0.69]
[1755907877779,40.45,199.74,199.69,3.63581128]
[1755907877980,40.45,199.74,199.7,3.63581128]
[1755907878179,40.45,199.74,199.71,3.63581128]
[1755907878375,40.45,199.74,199.66,0.03]
[1755907878376,39.87991715,199.67,199.66,0.03]
[1755907878610,79.63991715,199.67,199.66,0.03]
[1755907878926,80.32991715,199.67,199.66,0.03]
[1755907879096,0.69,199.7,199.66,0.03]
[1755907879284,53.35559401,199.69,199.66,0.03]
[1755907879486,54.04559401,199.69,199.66,0.03]
[1755907879685,60.88534801,199.69,199.66,0.03]
[1755907881214,0.69,199.68,199.66,0.03]
[1755907881389,39.76,199.67,199.66,0.03]
[1755907885310,40.45,199.67,199.66,0.03]
[1755907885914,39.76,199.67,199.66,0.03]
[1755907886207,54.04559401,199.67,199.66,0.03]
[1755907886523,69.08733501,199.67,199.66,0.03]
[1755907888413,15.041741,199.67,199.66,0.03]
[1755907888617,54.801741,199.67,199.66,0.03]
[1755907889216,15.041741,199.67,199.66,0.03]
[1755907889408,54.801741,199.67,199.66,0.03]
[1755907889906,55.481741,199.67,199.66,0.03]
[1755907890107,15.721741,199.67,199.66,0.03]
[1755907890418,55.481741,199.67,199.66,0.03]
[1755907891817,69.07733501,199.67,199.66,0.03]
[1755907892822,95.36165815,199.67,199.66,0.03]
[1755907893409,0.28432314,199.65,199.55,0.7]
[1755907893626,13.59559401,199.63,199.55,0.7]
[1755907893823,39.76,199.62,199.55,0.7]
[1755907894006,40.44,199.62,199.55,0.7]
[1755907894209,55.485513,199.62,199.55,0.7]
[1755907894426,40.44,199.62,199.55,0.7]
[1755907894630,15.045512,199.61,199.55,0.7]
[1755907894839,39.76,199.6,199.55,0.7]
[1755907895299,39.76,199.6,199.49,0.28432314]
[1755907895499,39.76,199.59,199.5,3.58163284]
[1755907895796,39.76,199.59,199.53,0.03]
[1755907896128,39.76,199.59,199.54,4.28163284]
[1755907896328,39.76,199.59,199.55,0.7]
[1755907896622,39.76,199.59,199.56,0.7]
[1755907898418,15.725512,199.61,199.56,0.7]
[1755907898619,39.76,199.6,199.56,0.7]
[1755907898811,40.44,199.6,199.56,0.7]
[1755907899010,39.76,199.59,199.56,0.7]
[1755907899626,39.76,199.59,199.54,0.7]
[1755907899844,39.76,199.58,199.55,4.28025782]
[1755907900127,39.76,199.58,199.55,0.7]
[1755907901307,39.76,199.58,199.53,0.03]
[1755907901308,40.44,199.58,199.53,0.03]
[1755907901524,40.44,199.58,199.54,3.57818804]
[1755907901728,0.68,199.57,199.55,3.57818804]
[1755907902031,39.76,199.56,199.53,0.03]
[1755907902220,39.76,199.56,199.54,3.57912613]
[1755907902528,15.727022,199.59,199.54,0.7]
[1755907902529,39.76,199.55,199.54,0.7]
[1755907902735,39.76,199.55,199.53,0.03]
[1755907902938,39.76,199.54,199.53,0.73]
[1755907903526,39.76,199.54,199.53,0.03]
[1755907904226,40.44,199.54,199.53,0.03]
[1755907905847,54.03559401,199.54,199.53,0.03]
[1755907907405,13.595594,199.55,199.53,0.03]
[1755907907609,39.74,199.54,199.53,0.03]
[1755907907833,15.050041,199.56,199.53,0.03]
[1755907908038,39.74,199.55,199.53,0.73]
[1755907908334,39.74,199.55,199.53,0.03]
[1755907908523,15.049286,199.57,199.53,0.73]
[1755907908725,39.74,199.56,199.53,0.03]
[1755907908926,0.68,199.58,199.53,0.03]
[1755907909130,0.28432314,199.61,199.53,0.03]
[1755907909131,39.74,199.57,199.54,0.7]
[1755907909326,39.74,199.57,199.55,3.58030558]
[1755907909523,39.74,199.57,199.55,4.28030558]
[1755907909724,39.74,199.57,199.55,0.7]
[1755907910317,15.725513,199.62,199.55,0.7]
[1755907910527,39.76,199.61,199.55,0.7]
[1755907911912,40.44,199.61,199.55,0.7]
[1755907912437,40.44,199.61,199.56,3.58474708]
[1755907912628,0.68,199.6,199.56,3.58474708]
[1755907912820,0.68,199.6,199.53,0.73]
[1755907913023,0.68,199.6,199.54,3.58468302]
[1755907913348,0.68,199.6,199.55,3.58468302]
[1755907913529,0.68,199.6,199.56,3.58468302]
[1755907913728,0.68,199.6,199.53,0.73]
[1755907913917,0.68,199.6,199.54,3.58573834]
[1755907914118,0.68,199.6,199.55,3.58573834]
[1755907914311,0.68,199.59,199.56,3.58573834]
[1755907914548,39.74,199.58,199.53,0.73]
[1755907914724,39.74,199.58,199.54,3.5864585]
[1755907914927,0.68,199.6,199.55,4.28693313]
[1755907915256,0.68,199.64,199.56,4.28748688]
[1755907915418,0.74,199.66,199.57,4.28748688]
[1755907915755,4.286933,199.65,199.58,4.28748688]
[1755907916049,0.68,199.64,199.58,0.7]
[1755907916261,0.68,199.64,199.59,3.58615358]
[1755907916465,44.026933,199.65,199.6,3.58615358]
[1755907916668,44.026933,199.65,199.59,0.7]
[1755907916861,0.68,199.64,199.6,3.58729219]
[1755907917069,0.68,199.64,199.53,4.316934]
[1755907917244,0.68,199.64,199.55,0.67]
[1755907917572,0.68,199.64,199.56,3.58724736]
[1755907917746,0.68,199.64,199.57,4.25724736]
[1755907917945,0.68,199.64,199.58,3.58724736]
[1755907918270,0.68,199.64,199.59,3.58724736]
[1755907918437,0.7,199.63,199.54,0.67]
[1755907918631,0.7,199.63,199.55,3.59024052]
[1755907918858,0.7,199.63,199.56,3.59024052]
[1755907919061,0.7,199.63,199.57,3.59024052]
[1755907919263,4.287247,199.63,199.54,0.67]
[1755907919429,0.7,199.62,199.55,3.5923285]
[1755907919636,39.74,199.61,199.56,3.5923285]
[1755907919830,0.7,199.6,199.53,0.03]
[1755907920047,0.7,199.6,199.54,3.59253386]
[1755907920252,0.7,199.6,199.55,3.59253386]
[1755907920442,4.292533,199.6,199.53,0.03]
[1755907920644,0.7,199.59,199.54,3.59440157]
[1755907920849,0.7,199.58,199.55,3.59440157]
[1755907921058,0.7,199.58,199.53,0.03]
[1755907921237,0.7,199.58,199.54,3.59435166]
[1755907921426,0.7,199.58,199.53,0.03]
[1755907921427,0.7,199.58,199.55,3.59599455]
[1755907921632,0.7,199.58,199.56,3.59591117]
[1755907921956,0.7,199.58,199.53,0.7]
[1755907922261,0.7,199.58,199.54,3.5960243]
[1755907922464,0.7,199.58,199.55,3.5960243]
[1755907922637,0.7,199.58,199.56,3.5960243]
[1755907922841,39.72,199.57,199.53,0.7]
[1755907923043,3.592533,199.6,199.54,4.26760809]
[1755907923287,39.72,199.59,199.55,4.26760809]
[1755907923570,39.72,199.58,199.56,3.59760809]
[1755907923760,39.72,199.58,199.57,3.59760809]
[1755907924155,0.7,199.62,199.57,3.59830674]
[1755907924354,39.72,199.61,199.58,3.59830674]
[1755907924544,40.42,199.61,199.59,3.59867506]
[1755907924875,4.298306,199.63,199.6,3.59867506]
[1755907925036,4.298306,199.63,199.53,0.03]
[1755907925037,40.42,199.62,199.54,0.67]
[1755907925233,0.7,199.61,199.55,3.57169365]
[1755907925432,0.7,199.61,199.56,3.57169365]
[1755907925658,0.7,199.61,199.57,3.57169365]
[1755907925967,0.7,199.61,199.53,0.03]
[1755907926171,0.7,199.61,199.54,3.57307346]
[1755907926361,0.7,199.61,199.55,3.57307346]
[1755907926559,0.7,199.61,199.56,3.57307346]
[1755907926756,39.72,199.6,199.57,3.57307346]
[1755907926965,39.72,199.6,199.58,3.57307346]
[1755907927147,39.72,199.59,199.57,0.67]
[1755907927337,40.42,199.59,199.53,0.03]
[1755907927534,0.7,199.58,199.54,3.57421413]
[1755907927738,0.7,199.58,199.53,0.03]
[1755907927739,15.750041,199.58,199.53,0.03]
[1755907927981,15.750041,199.58,199.54,3.57506892]
[1755907928281,0.7,199.57,199.53,0.03]
[1755907930644,39.72,199.56,199.53,0.03]
[1755907931473,2.706673,199.55,199.53,0.03]
[1755907931855,2.006673,199.55,199.53,0.03]
[1755907932059,0.7,199.54,199.53,0.03]
[1755907933352,40.42,199.54,199.53,0.03]
[1755907936952,0.7,199.54,199.53,0.03]
[1755907937258,40.42,199.54,199.53,0.03]
[1755907937461,0.7,199.54,199.53,0.03]
[1755907937762,40.42,199.54,199.53,0.03]
[1755907939673,40.4,199.54,199.53,0.03]
[1755907941150,0.7,199.54,199.53,0.03]
[1755907941350,40.4,199.54,199.53,0.03]
[1755907942260,54.27991715,199.54,199.53,0.03]
[1755907942456,0.28432314,199.52,199.49,0.03]
[1755907942660,40.4,199.51,199.49,0.03]
[1755907942863,0.7,199.5,199.49,0.03]
[1755907943061,39.7,199.51,199.49,0.03]
[1755907943062,0.7,199.51,199.49,0.03]
[1755907943371,40.4,199.5,199.49,0.03]
[1755907945262,0.7,199.5,199.49,0.03]
[1755907945459,79.7,199.54,199.49,0.03]
[1755907945673,40.4,199.53,199.49,0.03]
[1755907945876,0.7,199.53,199.49,0.03]
[1755907946182,39.7,199.52,199.5,0.67]
[1755907946484,0.7,199.55,199.49,0.03]
[1755907946870,39.7,199.54,199.49,0.7]
[1755907947083,39.7,199.54,199.5,4.26185743]
[1755907947277,39.7,199.54,199.5,0.69]
[1755907947459,79.0,199.58,199.5,0.69]
[1755907947785,0.71,199.54,199.5,0.69]
[1755907947982,39.7,199.53,199.5,0.69]
[1755907948158,39.7,199.52,199.51,0.69]
[1755907948478,39.7,199.52,199.51,4.26145216]
[1755907948877,39.7,199.52,199.51,0.69]
[1755907949551,0.28432314,199.6,199.51,4.26127583]
[1755907949771,0.71,199.6,199.52,4.26127583]
[1755907949960,0.71,199.6,199.49,0.03]
[1755907949961,0.71,199.6,199.53,3.57127583]
[1755907950167,39.7,199.59,199.54,4.26127583]
[1755907950375,0.71,199.6,199.55,0.69]
[1755907950584,39.7,199.59,199.56,0.69]
[1755907950880,39.7,199.58,199.57,4.25979945]
[1755907951085,0.71,199.64,199.57,0.69]
[1755907951285,39.7,199.63,199.57,0.69]
[1755907953368,0.71,199.64,199.57,0.69]
[1755907953566,39.7,199.63,199.57,0.69]
[1755907956787,0.71,199.64,199.57,0.69]
[1755907956986,39.68,199.63,199.57,0.69]
[1755907957770,39.68,199.63,199.58,3.58774748]
[1755907957971,40.39,199.63,199.58,0.69]
[1755907959293,0.71,199.65,199.59,0.69]
[1755907959475,39.68,199.64,199.59,0.69]
[1755907959792,40.39,199.64,199.59,0.69]
[1755907960369,0.77,199.63,199.53,0.72]
[1755907960571,39.68,199.62,199.54,29.58751201]
[1755907960779,39.68,199.62,199.55,4.27751201]
[1755907960963,0.06,199.63,199.56,4.27751201]
[1755907961164,0.06,199.63,199.54,26.0]
[1755907961165,0.06,199.63,199.57,30.27751201]
[1755907961398,39.68,199.62,199.58,4.27751201]
[1755907961698,0.71,199.61,199.56,26.0]